Cogmind - Beta 15 @@@ ROGUE MODE // 2025.07.04 @ 13:54:47 Player: BlobtheGreat Result: Destroyed by L-41 Fighter with Axe Performance ------------- Evolutions (3) 1500 Regions Visited (7) 1400 Robots Destroyed (120) 600 Value Destroyed (4496) 4496 Prototype IDs (29) 580 Alien Tech Used (0) 0 Bonus (1436) 1436 TOTAL SCORE: 10012 Bonus ------- High Alert Combat Kills 401 Follower Combat Kills 35 Entered Garrisons 200 Used RIF Installer 500 Aligned with FarCom 300 Cogmind --------- Core Integrity 0/700 Matter 47/300 Energy 100/100 System Corruption 26% Temperature Cool (0) Movement Core (700) Ox13 Location -7/Factory Parts ------- > --- POWER (1) -------- (None) > --- PROPULSION (4) --- (None) > --- UTILITY (5) ------ High-capacity Storage Unit > --- WEAPON (3) ------- (None) > --- INVENTORY (20) --- Improved Deuterium Engine Improved Airjet Improved Airjet Improved Gravmag System Improved Heat Sink Transmission Jammer Relay Coupler [NC] (32) Relay Coupler [Swarmer] (28) Improved Spread Laser Gauss Rifle Precision Assault Rifle Gauss Cannon Remote Datajack Peak State ------------ > --- POWER ------------ Improved Deuterium Engine > --- PROPULSION ------- Light Treads Improved Treads Armored Treads Improved Airjet > --- UTILITY ---------- Improved Heat Sink High-capacity Storage Unit 0b10 Alert Chip Core Analyzer Improved Medium Armor Plating > --- WEAPON ----------- Improved Spread Laser Gauss Rifle Advanced Assault Cannon > --- INVENTORY -------- Improved Deuterium Engine Micro Nuclear Core Improved Treads Improved Gravmag System Improved Signal Interpreter Improved Medium Armor Plating Improved Medium Armor Plating Relay Coupler [NC] Relay Coupler [Swarmer] Relay Coupler [Grunt] Improved Spread Laser Gauss Rifle Flak Gun Precision Assault Rifle Assault Cannon Gauss Cannon Rocket Launcher Remote Datajack Plasma Cutter Axe [Rating: 52] Favorites ----------- Power Heavy Ion Engine Engine Heavy Ion Engine Propulsion Light Treads Treads Light Treads Wheel Wheel Hover Unit Cooled Airjet Utility 0b10 Alert Chip Device Improved Heat Sink Storage High-capacity Storage Unit Processor 0b10 Alert Chip Hackware Relay Coupler [Grunt] Protection Improved Medium Armor Plating Weapon Lightning Gun Energy Gun Lightning Gun Energy Cannon Particle Cannon Ballistic Gun Assault Rifle Ballistic Cannon Assault Cannon Launcher Rocket Launcher Special Weapon Remote Datajack Impact Weapon Hammer Slashing Weapon Axe Build | -11 -10 -10 -10 -9 -8 -8 -7 ------- Run | Yrd Mat Min Exi Min Mat Gar Fac Slots Evolved 6 | . . . . . 4 . 2 Power . | . . . . . . . . Propulsion 2 | . . . . . 1 . 1 Utility 3 | . . . . . 2 . 1 Weapon 1 | . . . . . 1 . . Parts Attached 69 | 7 6 6 . 2 16 6 26 Power 6 | 1 . 1 . . 1 . 3 Engine 6 | 1 . 1 . . 1 . 3 Core . | . . . . . . . . Reactor . | . . . . . . . . Propulsion 15 | 2 2 1 . 1 1 1 7 Treads 11 | 2 . 1 . 1 1 1 5 Leg . | . . . . . . . . Wheel 2 | . 2 . . . . . . Hover 2 | . . . . . . . 2 Flight . | . . . . . . . . Utility 24 | 2 4 1 . . 6 1 10 Device 7 | 1 2 . . . 2 1 1 Storage 6 | 1 2 . . . 1 . 2 Processor 3 | . . . . . 1 . 2 Hackware 1 | . . . . . . . 1 Protection 7 | . . 1 . . 2 . 4 Artifact . | . . . . . . . . Weapon 24 | 2 . 3 . 1 8 4 6 Energy Gun 8 | 2 . . . . 3 3 . Energy Cannon 1 | . . . . . 1 . . Ballistic Gun 6 | . . 2 . . . . 4 Ballistic Cannon 4 | . . . . . 3 . 1 Launcher 2 | . . 1 . 1 . . . Special Weapon 1 | . . . . . . . 1 Impact Weapon 1 | . . . . . 1 . . Slashing Weapon 1 | . . . . . . 1 . Piercing Weapon . | . . . . . . . . Special Melee Weapon . | . . . . . . . . Unidentified Prototypes 6 | . . . . . 3 . 3 Parts Lost 30 | . 3 2 . 1 . 4 20 Power 2 | . 1 . . . . . 1 Propulsion 11 | . 1 2 . 1 . 1 6 Utility 8 | . 1 . . . . 1 6 Weapon 9 | . . . . . . 2 7 Highest Loss Streak 12 | . 2 3 . 1 . 2 12 To Critical Strikes . | . . . . . . . . Average Backups 16 | 5 12 12 13 13 17 19 19 Power 1 | . 1 . 1 1 1 1 1 Propulsion 2 | 3 3 1 1 . 1 3 2 Utility 6 | . 4 5 5 6 5 7 6 Weapon 6 | . 3 4 5 5 7 6 7 Tool/Special . | . . . . . . . . Unused Backups 31 | . 2 . . . 13 1 15 Power 4 | . . . . . 1 . 3 Propulsion 9 | . 2 . . . 2 . 5 Utility 11 | . . . . . 5 1 5 Weapon 6 | . . . . . 5 . 1 Tool/Special 1 | . . . . . . . 1 Average Slot Usage (%) 98 | . 98 99 73 99 99 99 97 Engine 9 | . 14 14 14 14 9 9 6 Treads 25 | . 1 27 28 28 26 26 28 Wheel 1 | . 25 . . . . . . Device 6 | . 14 . . . 8 9 6 Storage 9 | . 14 14 14 14 9 9 7 Processor 7 | . . . . . 8 9 14 Protection 8 | . . 13 14 14 9 9 6 Energy Gun 12 | . 28 5 . . 15 16 8 Ballistic Gun 7 | . . 21 2 27 4 . 7 Ballistic Cannon 3 | . . . . . 6 3 3 Slashing Weapon 1 | . . . . . . 5 1 Peak Build Rating 52 | 7 8 9 9 11 37 40 52 Average Rating 30 | 6 7 8 7 9 34 37 46 On Entrance 14 | . 7 5 9 8 10 37 38 Naked Turns . | . . . . . . . . Heaviest Build 88 | 13 88 31 30 32 69 70 73 Greatest Support 91 | 40 40 40 40 40 60 60 91 Greatest Overweight (x) 8 | . 8 . . . 1 1 1 Average Overweight (x) . | . 1 . . . . 1 . Largest Inventory Capacity 25 | 8 25 15 15 15 20 20 20 Average Capacity 18 | 7 16 15 15 15 17 20 20 Most Carried 20 | 7 15 14 15 14 20 20 20 Average Carried 16 | 5 12 12 13 13 17 19 19 Final Capacity 20 | 8 15 15 15 15 20 20 20 Final Carried 20 | 7 15 13 13 14 20 20 13 Class Distribution -------------------- 48% | Mutant 30% | Skirmisher 15% | Scavenger-Skirmisher 3% | Scavenger-Assassin Dominant Class ---------------- Mutant | -10/Materials Mutant | -10/Mines Mutant | -10/Exiles Mutant | -9/Mines Skirmisher | -8/Materials Mutant | -8/Garrison Scavenger-Skirmisher | -7/Factory Resources | -11 -10 -10 -10 -9 -8 -8 -7 ----------- Run | Yrd Mat Min Exi Min Mat Gar Fac Matter Collected 2966 | 245 95 248 . 118 535 544 1181 Remotely . | . . . . . . . . Salvage Created 3654 | 204 393 213 . 125 937 644 1138 Parts 213 | 18 14 12 . 16 36 40 77 Haulers Intercepted 7 | . 2 . . . 1 . 4 Recyclers Shooed 2 | . . . . . . . 2 Parts Field Recycled . | . . . . . . . . Retrieved Matter . | . . . . . . . . Parts Self-Destructed . | . . . . . . . . Prevented . | . . . . . . . . Kills | -11 -10 -10 -10 -9 -8 -8 -7 ------- Run | Yrd Mat Min Exi Min Mat Gar Fac Combat Hostiles Destroyed 94 | . 6 11 . 7 16 25 29 Melee 1 | . . . . . . . 1 Guns 45 | . 5 8 . 1 8 8 15 Cannons 14 | . . . . . 4 5 5 AOE 30 | . . 2 . 6 2 12 8 Classes Destroyed 16 | 2 3 2 . 1 3 3 2 Worker 4 | . . . . . . . 4 Builder 2 | . . . . . . . 2 Tunneler 8 | 7 . . . 1 . . . Hauler 7 | . 2 . . . 1 . 4 Recycler 3 | 1 . . . . 1 . 1 Mechanic 1 | . 1 . . . . . . Watcher 4 | . . . . . 2 . 2 Swarmer 32 | . . 4 . 4 3 10 11 Grunt 35 | . 6 4 . 2 9 8 6 Brawler 4 | . . . . 1 1 1 1 Duelist 1 | . . . . . . 1 . Sentry 7 | . . . . . 2 3 2 Specialist 1 | . . . . . . 1 . Hunter 1 | . . . . . 1 . . Programmer 10 | . . . . . . 1 9 Assembled 3 | . . 3 . . . . . Best Kill Streak 6 | 3 3 3 . 5 6 6 5 Combat Bots Only 6 | . 3 3 . 4 5 6 3 Max Kills in Single Turn 3 | 1 1 1 . 3 2 2 3 Gunslinging 1 | . . . . . . . 1 Exploded 3 | . . 1 . 3 2 2 3 Melee 1 | . . . . . . . 1 Uniques/NPCs Destroyed . | . . . . . . . . Combat | -11 -10 -10 -10 -9 -8 -8 -7 -------- Run | Yrd Mat Min Exi Min Mat Gar Fac Hostile Shots Fired 375 | . 37 49 . 9 51 44 185 Missed 112 | . 11 15 . 3 17 14 52 Hits 263 | . 26 34 . 6 34 30 133 Melee 38 | . . 2 . . . . 36 Projectile 225 | . 26 32 . 6 34 30 97 Critical Strikes 22 | . 1 . . . 1 2 18 Part Disruptions 1 | . . . . . . . 1 Damage Taken 5662 | . 378 398 . 99 497 442 3848 Core 887 | . 60 54 . 23 17 14 719 Absorbed by Shields . | . . . . . . . . Redirected to Shielding 8 | . . . . 3 5 . . Regen/Repaired (Parts) 55 | . . . . . 55 . . Core Remaining (%) 79 | 100 . . . 45 . 94 . Volleys Fired 309 | 21 48 30 . 12 57 47 94 Largest 3 | 2 2 2 . 2 3 3 3 Hottest 205 | 100 100 100 . 40 147 205 143 Shots Fired 677 | 42 96 56 . 16 157 104 206 Gun 511 | 42 96 52 . 8 112 58 143 Cannon 127 | . . . . . 44 33 50 Launcher 38 | . . 4 . 8 1 13 12 Special 1 | . . . . . . . 1 Kinetic 282 | . . 34 . 8 59 33 148 Thermal 237 | 42 96 18 . . 11 25 45 Explosive 38 | . . 4 . 8 1 13 12 Electromagnetic 119 | . . . . . 86 33 . Robot Hit Streak 24 | 9 24 10 . 5 7 16 11 Robot Miss Streak 15 | 2 5 3 . 1 9 4 15 Penetration Max 1 | . . . . . . . 1 Secondary Targets 6 | . . 2 . . 1 1 2 Max Gunslinging Chain 1 | . . 1 . . 1 1 1 Shots Hit Robots 404 | 29 69 33 . 9 82 63 119 Core Hits 267 | 9 20 17 . 11 40 57 113 Critical Kills . | . . . . . . . . Critical Parts Destroyed . | . . . . . . . . Critical Strikes 18 | 5 8 1 . . . 1 3 Burn 14 | 5 8 1 . . . . . Blast 2 | . . . . . . 1 1 Sever 2 | . . . . . . . 2 Melee Attacks 48 | . . . . . 9 15 24 Impact 9 | . . . . . 9 . . Slashing 39 | . . . . . . 15 24 Piercing . | . . . . . . . . Sneak Attacks 1 | . . . . . . . 1 Combat Hostiles . | . . . . . . . . Follow-up Attacks . | . . . . . . . . Damage Inflicted 10330 | 378 890 620 . 498 1799 2027 4118 Guns 5821 | 378 890 378 . 74 1281 897 1923 Cannons 1312 | . . . . . 455 406 451 Explosions 2881 | . . 242 . 420 52 724 1443 Melee 268 | . . . . . . . 268 Ramming 48 | . . . . 4 11 . 33 Kinetic 2898 | . . 223 . 74 533 406 1662 Thermal 2910 | 378 890 155 . . 132 509 846 Explosive 2747 | . . 242 . 420 52 724 1309 Electromagnetic 1459 | . . . . . 1071 388 . Impact . | . . . . . . . . Slashing 268 | . . . . . . . 268 Piercing . | . . . . . . . . Highest Corruption 26 | . 2 2 2 2 . 2 26 Average Corruption 4 | . 2 2 2 2 . 1 10 Corruption Purged . | . . . . . . . . Corruption Blocked . | . . . . . . . . Effects 177 | . 1 19 9 11 . 41 96 Message Errors 36 | . . 3 3 3 . 8 19 Matter Fused 44 | . . 5 3 2 . 9 25 Heat Flow Errors 22 | . . 5 . 3 . 6 8 Energy Discharges 23 | . 1 2 1 1 . 7 11 Parts Rejected 3 | . . . . . . . 3 Parts Fused 2 | . . . . . . 1 1 Data Loss (minor) 22 | . . 4 1 2 . 6 9 Data Loss (major) 8 | . . . . . . 3 5 Misfires 6 | . . . . . . 1 5 Alerts 3 | . . . 1 . . . 2 Misdirections 1 | . . . . . . . 1 Weapon Failures 7 | . . . . . . . 7 Overload Shots . | . . . . . . . . Overflow Damage 178 | . . . . 9 . 37 132 Projectiles 21 | . . . . . . . 21 Explosions 157 | . . . . 9 . 37 111 Melee . | . . . . . . . . Knockbacks 10 | . . . . 1 5 1 3 Impact 1 | . . . . 1 . . . Kinetic 9 | . . . . . 5 1 3 Secondary . | . . . . . . . . Self-Inflicted Damage 709 | . . . . 39 . . 670 Shots 13 | . . . . 2 . . 11 Rammed 12 | . . . . 1 1 . 10 Targets Rammed 12 | . . . . 1 1 . 10 Kicked . | . . . . . . . . Crushed . | . . . . . . . . Highest Temperature 473 | 195 354 369 . 275 270 473 242 Average Temperature 86 | 71 91 127 . 113 78 114 40 Received Heat Transfer 918 | . 195 126 . 12 225 234 126 Effects 3 | . . 1 . . . 2 . Shutdowns 1 | . . 1 . . . . . Interference 1 | . . . . . . 1 . Matter Decay 1 | . . . . . . 1 . Siege Activations . | . . . . . . . . Martial Activations . | . . . . . . . . Shielding Activations . | . . . . . . . . Robots Disrupted 1 | . . . . . 1 . . Combat Hostiles 1 | . . . . . 1 . . Robots Corrupted 2 | . . . . . 2 . . Combat Hostiles 2 | . . . . . 2 . . Parts Fried 8 | . . . . . 7 1 . Impact Corruptions . | . . . . . . . . Robots Melted 3 | . 2 1 . . . . . Combat Hostiles 2 | . 1 1 . . . . . Parts Melted 7 | . 4 2 . . . 1 . Heat Transferred 6323 | 1480 3145 518 . . 110 420 650 Parts Sabotaged . | . . . . . . . . Parts Stolen . | . . . . . . . . Parts Stripped . | . . . . . . . . Power Chain Reactions . | . . . . . . . . Alert | -11 -10 -10 -10 -9 -8 -8 -7 ------- Run | Yrd Mat Min Exi Min Mat Gar Fac Maximum Alert Level 5 | . . . . . . 5 3 Low Security (%) 51 | 100 100 100 . 100 100 21 . Level 1 8 | . . . . . . 9 23 Level 2 23 | . . . . . . 22 65 Level 3 8 | . . . . . . 17 11 Level 4 7 | . . . . . . 26 . Level 5 . | . . . . . . 1 . High Security . | . . . . . . . . Max Security . | . . . . . . . . Peak Influence 1660 | 10 84 74 . 102 169 1660 871 Initial 871 | . . 7 . . . 77 871 Average 354 | 1 24 12 . 27 53 733 509 Influence Increases 3849 | 40 237 214 . 213 551 1623 971 Destroy 0b10 Robot/C 1576 | . 120 160 . 140 272 400 484 Destroy 0b10 Robot/NC 128 | 40 15 . . 5 16 . 52 Destroy Leader 318 | . 34 30 . 20 70 16 148 Allied During Kill 6 | . . . . . 6 . . Successful Hack 119 | . 51 . . . 68 . . Disable Machine 207 | . . 15 . . . . 192 Anti-Garrison Action 1040 | . . . . . . 1040 . Destroy Structure 272 | . 2 9 . 48 23 95 95 Lose Combat Pursuer 183 | . 15 . . . 96 72 . Influence Decreases 3259 | 40 217 206 28 213 432 82 2041 Entered New Map 872 | . . 13 28 . . 42 789 Time Decay 1732 | 40 187 176 . 203 414 . 712 Lost Part 297 | . 30 17 . 10 . 40 200 Lost Ally 58 | . . . . . 18 . 40 Purge Threat 300 | . . . . . . . 300 Squads Dispatched 14 | . 2 . . . 2 . 10 Investigation 2 | . 1 . . . 1 . . Extermination 5 | . . . . . . . 5 Reinforcement 5 | . 1 . . . 1 . 3 Assault 1 | . . . . . . . 1 Garrison 1 | . . . . . . . 1 Intercept . | . . . . . . . . Searches Triggered . | . . . . . . . . Construction Impeded 1 | . . . . . . . 1 Haulers Reinforced . | . . . . . . . . Active Scanning Responses . | . . . . . . . . Cargo Convoy Interrupts . | . . . . . . . . Stealth | -11 -10 -10 -10 -9 -8 -8 -7 --------- Run | Yrd Mat Min Exi Min Mat Gar Fac Distress Signals 7 | . . 2 . . 3 . 2 Communications Jammed . | . . . . . . . . Distress Signals . | . . . . . . . . Times Spotted 130 | . 19 13 . 5 33 18 42 Peak Tracking Total 5 | . 2 3 . 4 5 4 5 Tactical Retreats 11 | . 1 2 . . 6 2 . Traps | -11 -10 -10 -10 -9 -8 -8 -7 ------- Run | Yrd Mat Min Exi Min Mat Gar Fac Traps Triggered 17 | . 1 . . . . 11 5 Indirectly . | . . . . . . . . Trap Hack Attempts . | . . . . . . . . Triggered . | . . . . . . . . Disarmed . | . . . . . . . . Reprogrammed . | . . . . . . . . Reused . | . . . . . . . . Traps Extracted . | . . . . . . . . Installed . | . . . . . . . . Triggered . | . . . . . . . . Machines | -11 -10 -10 -10 -9 -8 -8 -7 ---------- Run | Yrd Mat Min Exi Min Mat Gar Fac Machines Disabled 21 | . . 1 . . . 4 16 Max in Single Turn 15 | . . 1 . . . 1 15 Garrison Access 1 | . . . . . . . 1 Garrison Relay 4 | . . . . . . 4 . Machines Repaired . | . . . . . . . . Machines Dismantled . | . . . . . . . . Machines Sabotaged . | . . . . . . . . Overloaded Fab Kills . | . . . . . . . . Hacking | -11 -10 -10 -10 -9 -8 -8 -7 --------- Run | Yrd Mat Min Exi Min Mat Gar Fac Machines Accessed 32 | . 8 . 1 . 12 3 8 Terminals 27 | . 8 . . . 10 3 6 Fabricators . | . . . . . . . . Repair Stations 2 | . . . . . 1 . 1 Recycling Units . | . . . . . . . . Scanalyzers . | . . . . . . . . Garrison Access 2 | . . . . . 1 . 1 Total Hacks 89 | . 38 . 1 . 26 7 17 Successful 43 | . 20 . 1 . 13 1 8 Failed 46 | . 18 . . . 13 6 9 Catastrophic 9 | . . . . . 4 2 3 Database Lockouts . | . . . . . . . . Manual 58 | . 23 . 1 . 21 1 12 Terminals 80 | . 38 . . . 23 7 12 Fabricators . | . . . . . . . . Repair Stations 6 | . . . . . 2 . 4 Recycling Units . | . . . . . . . . Scanalyzers . | . . . . . . . . Garrison Access 2 | . . . . . 1 . 1 Terminal Hacks 20 | . 12 . 1 . 2 1 4 Robot Analysis 6 | . 5 . . . 1 . . Emergency Access Points 2 | . 1 . . . . 1 . Terminal Index 1 | . 1 . . . . . . Unreport Threat 2 | . . . . . . . 2 Locate Traps 2 | . 2 . . . . . . Dispatch Records 2 | . 2 . . . . . . Transport Status 1 | . . . . . . . 1 Recall Investigation 1 | . 1 . . . . . . Hauler Manifests 2 | . . . . . 1 . 1 Proto ID Catalog 1 | . . . 1 . . . . Fabricator Hacks . | . . . . . . . . Repair Station Hacks 3 | . . . . . 2 . 1 Scan Component 2 | . . . . . 1 . 1 Repair 1 | . . . . . 1 . . Recycling Unit Hacks . | . . . . . . . . Scanalyzer . | . . . . . . . . Garrison Access Hacks 2 | . . . . . 1 . 1 Unlock Access 1 | . . . . . 1 . . Seal Access 1 | . . . . . . . 1 Unauthorized Hacks 18 | . 8 . . . 8 . 2 Terminals 18 | . 8 . . . 8 . 2 Botnet 5 | . 1 . . . 3 . 1 Skim 13 | . 7 . . . 5 . 1 Fabricators . | . . . . . . . . Repair Stations . | . . . . . . . . Recycling Units . | . . . . . . . . Scanalyzers . | . . . . . . . . Garrison Access . | . . . . . . . . Data Cores Recovered . | . . . . . . . . Used . | . . . . . . . . Hacking Detections 27 | . 8 . . . 10 3 6 Full Trace Events 1 | . . . . . 1 . . Feedback Events . | . . . . . . . . Feedback Blocked . | . . . . . . . . Robot Schematics Acquired . | . . . . . . . . Robots Built . | . . . . . . . . Authchips . | . . . . . . . . Time . | . . . . . . . . Total Robot Build Rating . | . . . . . . . . Part Schematics Acquired . | . . . . . . . . Parts Built . | . . . . . . . . Authchips . | . . . . . . . . Time . | . . . . . . . . Total Part Build Rating . | . . . . . . . . Parts Repaired 1 | . . . . . 1 . . Time 44 | . . . . . 44 . . Parts Recycled . | . . . . . . . . Recycled Matter . | . . . . . . . . Retrieved Matter . | . . . . . . . . Retrieved Components . | . . . . . . . . Parts Scanalyzed . | . . . . . . . . Part Schematics Acquired . | . . . . . . . . Parts Damaged . | . . . . . . . . Bothacking | -11 -10 -10 -10 -9 -8 -8 -7 ------------ Run | Yrd Mat Min Exi Min Mat Gar Fac Used RIF Installer 1 | . . . . . . 1 . Robots Hacked 1 | . . . . . . . 1 Non-combat . | . . . . . . . . Combat 1 | . . . . . . . 1 Robot Hacks Applied 1 | . . . . . . . 1 formatsys_high 1 | . . . . . . . 1 Relay Couplers Released 18 | . . . . . . 15 3 Machine Destruction 15 | . . . . . . 15 . Programmers 3 | . . . . . . . 3 Attached 1 | . . . . . . . 1 Fabnet Peak Effective % . | . . . . . . . . Robots Rewired 3 | . . . . . . 3 . Allies Hacked . | . . . . . . . . Hacks Repelled . | . . . . . . . . Allies | -11 -10 -10 -10 -9 -8 -8 -7 -------- Run | Yrd Mat Min Exi Min Mat Gar Fac Total Allies 8 | . . 1 . 3 . 3 1 Largest Group 3 | . . 1 1 3 3 3 3 Highest-Rated Group 59 | . . 31 31 40 40 45 59 Highest-Rated Ally 31 | . . 31 31 16 16 15 29 Total Orders 5 | . . . . . . 3 2 STAY 4 | . . . . . . 2 2 FOLLOW 1 | . . . . . . 1 . Ally Attacks 29 | . . . . . 23 . 6 Total Damage 294 | . . . . . 177 . 117 Kills 2 | . . . . . 1 . 1 Allies Corrupted . | . . . . . . . . Allies Melted . | . . . . . . . . Intel | -11 -10 -10 -10 -9 -8 -8 -7 ------- Run | Yrd Mat Min Exi Min Mat Gar Fac Active Infowar (turns) 1530 | 207 604 . . . 21 . 698 Sensors 21 | . . . . . 21 . . Seismic 811 | 207 604 . . . . . . Machine Analysis 698 | . . . . . . . 698 Robot Analysis Total 6 | . 5 . . . 1 . . Derelict Logs Recovered 3 | . . 1 . 2 . . . Drone Launches . | . . . . . . . . Drone Recoveries . | . . . . . . . . Exploration | -11 -10 -10 -10 -9 -8 -8 -7 ------------- Run | Yrd Mat Min Exi Min Mat Gar Fac Turns Passed 12403 | 306 842 1392 350 878 2067 3341 3227 Spaces Moved 5944 | 144 584 768 217 522 861 1285 1563 Core 3 | 3 . . . . . . . Treads 5373 | 141 16 768 217 522 861 1285 1563 Legs . | . . . . . . . . Wheels 568 | . 568 . . . . . . Hover . | . . . . . . . . Flight . | . . . . . . . . Fastest Speed 50 | 50 95 160 160 160 160 240 160 Average Speed 180 | 157 108 160 160 160 193 240 173 Slowest Speed 320 | 160 320 160 160 160 240 240 243 Overloaded Moves . | . . . . . . . . Propulsion Burnouts . | . . . . . . . . Robots Hopped . | . . . . . . . . Potential Cave-ins . | . . . . . . . . Cave-ins Triggered . | . . . . . . . . Exploration Rate (%) 66 | 6 96 98 43 84 67 86 50 Regions Visited 7 Branch Regions 3 Pre-discovered Areas 3 | . . . . 2 1 . . Known Exits Taken 4 | . 1 1 . 1 1 . . Unknown Exits Taken 2 | 1 . . 1 . . . . Scrap Searched 3 | . . 1 . 2 . . . Spaces Dug 60 | . . . . 7 5 16 32 Terrain Destroyed 243 | . . 9 . 77 24 42 91 Melee 14 | . . . . . 4 1 9 Projectile 27 | . . . . . 14 . 13 AOE 202 | . . 9 . 77 6 41 69 Terrain Rammed . | . . . . . . . . Walls Destroyed . | . . . . . . . . Machines Disabled . | . . . . . . . . Actions | -11 -10 -10 -10 -9 -8 -8 -7 --------- Run | Yrd Mat Min Exi Min Mat Gar Fac Total 6929 | 178 695 874 222 547 1135 1429 1849 Wait 322 | . 44 66 . 3 135 6 68 Move 5938 | 143 583 767 216 521 861 1284 1563 Hop . | . . . . . . . . Pick Up 72 | 7 10 3 1 4 26 7 14 Fast Attach 28 | 7 . . . . 9 . 12 Attach 26 | . . 5 . 3 3 4 11 Detach 4 | . . . 2 . 1 . 1 Swap 62 | . 7 3 . 3 7 15 27 Drop 60 | . 3 . 3 . 26 3 25 Fire 309 | 21 48 30 . 12 57 47 94 Melee 48 | . . . . . 9 15 24 Ram 3 | . . . . . . . 3 Kick . | . . . . . . . . Crush 9 | . . . . 1 1 . 7 Escape Stasis 18 | . . . . . . 18 . Rewire 30 | . . . . . . 30 . Trap . | . . . . . . . . Miscellaneous . | . . . . . . . . Route ------- -11/Scrapyard -10/Materials (discovered 5 exits: *Mat x3 / *Min / Sub) -10/Mines (discovered 4 exits: *Mat x2 / *Exi / Sub) -10/Exiles -9/Mines (discovered 2 exits: *Mat x2) -8/Materials (discovered 6 exits: *Fac x3 / *Sto x2 / Gar) -8/Garrison (discovered 3 exits: *Fac x3) -7/Factory (discovered 4 exits: *Fac x3 / [*Low]) History --------- Turn | Location | Event 4 | -11/Scrapyard | Discovered new exit (range 16) 307 | -11/Scrapyard | Entered Materials 308 | -10/Materials | Build established: Mutant 504 | -10/Materials | Discovered new exit (range 3) 639 | -10/Materials | Discovered new exit (range 6) 698 | -10/Materials | Learned Storage emergency access door positions 806 | -10/Materials | Learned 4 Recycling zone layouts 843 | -10/Materials | Learned location of 2 exits from Mines 871 | -10/Materials | Identified exit to Materials 901 | -10/Materials | Learned Recycling recycling unit intel 902 | -10/Materials | Loaded intel: 23 non-interactive machine locations 907 | -10/Materials | Derelicts attacked the area 909 | -10/Materials | Loaded intel: 2 recycling unit locations 925 | -10/Materials | Identified exit to Subcaves 925 | -10/Materials | Identified exit to Mines 952 | -10/Materials | Learned location of 3 exits from Materials 1149 | -10/Materials | Entered Mines 1151 | -10/Mines | Identified exit to Exiles 1181 | -10/Mines | Lost 3 parts (1p1n1u) 1217 | -10/Mines | Assembled infested the area 1718 | -10/Mines | Deemed a non-threat by the Exiles lab entrance 1978 | -10/Mines | Found a damaged Exp. Sensor Array with a note attached 1981 | -10/Mines | Found Prototype Device 2405 | -10/Mines | Received a Mining Laser from a helpful Derelict 2541 | -10/Mines | Entered Exiles 2541 | -10/Exiles | Accompanied by 1 ally 2582 | -10/Exiles | Met 8R-AWN 2606 | -10/Exiles | Met EX-HEX 2659 | -10/Exiles | Met EX-BIN 2680 | -10/Exiles | Aligned with FarCom system 2682 | -10/Exiles | Given EX-Vault access code 2718 | -10/Exiles | Opened EX-Vault 2728 | -10/Exiles | Found 0b10 Alert Chip 2763 | -10/Exiles | Warned to stay clear of 0b10 Research branches 2870 | -10/Exiles | Discovered new exit (range 15) 2891 | -10/Exiles | Left Exiles lab with 0b10 Alert Chip 2891 | -10/Exiles | Entered Mines 2892 | -9/Mines | Identified exit to Materials 2953 | -9/Mines | Learned location of Zion (-6) 3059 | -9/Mines | Discovered exit to Materials (range 9) 3135 | -9/Mines | Received a Rocket Launcher from a helpful Derelict 3444 | -9/Mines | Core integrity fell below 50% 3570 | -9/Mines | Assisted by bots powering up and referring to "LRC-V3" 3640 | -9/Mines | Found a hidden stash of uninstalled traps 3769 | -9/Mines | Entered Materials 3769 | -8/Materials | Accompanied by 3 allies 3769 | -8/Materials | Evolved 4 slots: Propulsion x1, Utility x2, Weapon x1 3770 | -8/Materials | Identified exit to Factory 3770 | -8/Materials | Identified exit to Storage 3793 | -8/Materials | Identified Exp. Sensor Array 4084 | -8/Materials | Build established: Skirmisher 4889 | -8/Materials | Learned Storage stockpile data 4964 | -8/Materials | Learned 2 Storage zone layouts 4972 | -8/Materials | Learned location of 1 exit from Storage 4973 | -8/Materials | Learned 4 Factory zone layouts 5001 | -8/Materials | Learned 2 Storage zone layouts 5031 | -8/Materials | Learned Factory terminal intel 5151 | -8/Materials | Repaired Lightning Gun 5836 | -8/Materials | Identified exit to Garrison 5836 | -8/Materials | Entered Garrison 5960 | -8/Garrison | Triggered checkpoint 6068 | -8/Garrison | Discovered exit to Factory (range 14) 6172 | -8/Garrison | Triggered checkpoint 6249 | -8/Garrison | Garrison Relay disabled 6556 | -8/Garrison | Triggered checkpoint 6590 | -8/Garrison | Triggered checkpoint 6662 | -8/Garrison | Discovered exit to Factory (range 12) 6681 | -8/Garrison | Installed Relay Interface Framework 6874 | -8/Garrison | Garrison Relay disabled 6951 | -8/Garrison | Discovered exit to Factory (range 15) 7252 | -8/Garrison | Triggered checkpoint 7317 | -8/Garrison | Garrison Relay disabled 7670 | -8/Garrison | Triggered checkpoint 7750 | -8/Garrison | Triggered checkpoint 8114 | -8/Garrison | Build established: Mutant 8184 | -8/Garrison | Triggered checkpoint 9177 | -8/Garrison | Entered Factory 9177 | -7/Factory | Accompanied by 3 allies 9177 | -7/Factory | Evolved 2 slots: Propulsion x1, Utility x1 9178 | -7/Factory | Identified exit to Factory 9179 | -7/Factory | Loaded intel: 26 terminal locations 9802 | -7/Factory | Build established: Scavenger-Assassin 10058 | -7/Factory | Garrison activated, responded to threat 10338 | -7/Factory | Build established: Scavenger-Skirmisher 10396 | -7/Factory | Discovered exit to Factory (range 7) 10460 | -7/Factory | System corruption reached 10% 11334 | -7/Factory | Discovered exit to Factory (range 9) 11977 | -7/Factory | First assault squad dispatched 12021 | -7/Factory | Build established: Skirmisher 12086 | -7/Factory | Discovered new exit (range 16) 12372 | -7/Factory | Core integrity fell below 50% 12399 | -7/Factory | Core integrity fell below 20% 12404 | -7/Factory | Destroyed by L-41 Fighter with Axe Last Messages --------------- 12387_ Slammed into L-41 Fighter. 12387_ Core Analyzer severed. 12387_ U-05 Engineer lays Concrete. 12388_ M-28 Smith fits Backup Plating III on K-01 Serf. 12388_ U-05 Engineer lays Concrete. 12390_ K-01 Serf cleans the Nuclear Reactor. 12390_ U-05 Engineer lays Concrete. 12394_ R-06 Scavenger collects Lgt. Treads. 12394_ Slammed into L-41 Fighter. 12394_ U-05 Engineer lays Concrete. 12396_ K-01 Serf cleans the Nuclear Reactor. 12397_ U-05 Engineer lays Concrete. 12398_ R-06 Scavenger collects Cld. Airjet. 12399_ U-05 Engineer lays Concrete. 12401_ Slammed into L-41 Fighter. 12401_ Destabilizing: Core damaged (-21). 12401_ U-05 Engineer lays Concrete. 12402_ K-01 Serf cleans the Nuclear Reactor. 12403_ U-05 Engineer lays Concrete. Map ----- +----------------------------------------------------+ | ?????# ## "???????? | | ?????# ## " ?????? | | ???????????????# | | ???????????????# ! """ " | | ???????????????# """ " | | ??????????? ??# ?"" " | | ?????????? ???# % ?? | | ######??? ????# % ######## | | ####+###### = | | | | =% """ | | !% " """ | | < = " """ | | =%!#???? | | #?"??"" | | # ""?"" | | ## T################ " """ | | +#########??????????????# " | | #????????????????# | | """""" #????????????????# | | """""" ?????????????????# = | | """""" #?????????"""????# === = ! | | """""" ??????????"Y"????# * ! ! | | ?????????????"?"????# r =* | | """""???????????????????#l | | """""??????????????"""??#@m | | """"???????????????""" # ! ###+#### | | """????????????????""" # % u ????? | | ??????????????????? # ???? | | ??????????????????#+##?# ???? | | #???????????????????????# ???? | | ??????????????????????? ????? | | ??????????????????????### ????? | | ????????????????????????# ?????? | | ????????????????????????########;;;;;;"""###?????? | | ??????????????????????????????C? k # ???????? | | ???????????????????????????????? """ #?????????? | | ???????????????????????????????? """ ??????????? | | ???????????????????????????????? ????? ??????????? | | ?????????????????????????????????????????????????? | | ?????????????????????????????????????????????????? | | ?????????????????????????????????????????????????? | | ?????????????????????????????????????????????????? | | ?????????????????????????????????????????????????? | | ???????????????????????????????????"T"???????????? | | ???????????????????????????????????"""???????????? | | ?????????????????????????????????????????????????? | | ???????????T?????????????????????????????????????? | | ?????????????????????????????????????????????????? | | ?????????????????????????????????????????????????? | +----------------------------------------------------+ Best States ------------- Heat Dissipation 48 Energy Generation 16 Energy Capacity 290 Matter Stores 300 Matter Capacity 300 Sight Range 16 Robot Scan Range 20 Terrain Scan Density 10 Armor Coverage 450 Power Shielding 33 Evasion (%) 41 Core Analysis 6 Recoil Reduction 4 Relay Coupler Types 1 Relay Coupler Value 31 Item Schematics ----------------- None Robot Schematics ------------------ None Fabricated ------------ Nothing Repaired ---------- Lightning Gun | 8% | -8/Materials Alien Tech Used ----------------- None Achievements -------------- Quantum Hacking Challenges ------------ None Game ------ Seed GravjetSurgeTether Manual? 0 Play Time 01:03:50 Cumulative 60.9 hours Start 2025.07.04 @ 12:46:49 End 2025.07.04 @ 13:54:47 Sessions 1 Manual Loads 0 Difficulty Rogue Special Mode None Game No. 57 Rogue 57 Adventurer 0 Explorer 0 Win Type - Total 1 Types 1/0/0/0/0/0/0/0/0/0 Lore% 39 Gallery% 36 Achievement% 37 Wizard Run 0 Options --------- Layout 1 ASCII 0 Keyboard 1 Movement Arrows Keybinds 0 Fullscreen 1 Font 24/Smallcaps Map View 50x40 Zoom Use 0% Tactical HUD 1 Map Filters NONE Filters NONE Steam 1 RUN: 17f5e80c-94bf-4f5f-8b75-91cde7f35192